Cogmind - Beta 13 @@@ ROGUE MODE // 2024.05.03 @ 11:32:32 Player: ElectroBlueGuy Result: Destroyed by G-34 Mercenary with Small Laser Performance ------------- Evolutions (0) 0 Regions Visited (1) 200 Robots Destroyed (16) 80 Value Destroyed (331) 331 Prototype IDs (2) 40 Alien Tech Used (0) 0 Bonus (0) 0 TOTAL SCORE: 651 Bonus ------- None Cogmind --------- Core Integrity 0/250 Matter 280/300 Energy 65/125 System Corruption 0% Temperature Cool (45) Movement Walking (120) Location -10/Materials Parts ------- > --- POWER (1) -------- Light Ion Engine > --- PROPULSION (2) --- Aluminum Leg Aluminum Leg > --- UTILITY (2) ------ Small Storage Unit Targeting Computer > --- WEAPON (2) ------- Assault Rifle > --- INVENTORY (8) ---- Aluminum Leg ECM Suite Authchip [Weapon] Assault Rifle Hammer Peak State ------------ > --- POWER ------------ Ion Engine > --- PROPULSION ------- Aluminum Leg Aluminum Leg > --- UTILITY ---------- Small Storage Unit Targeting Computer > --- WEAPON ----------- Small Laser Hammer > --- INVENTORY -------- Light Ion Engine Aluminum Leg Aluminum Leg ECM Suite Authchip [Weapon] Assault Rifle Assault Rifle [Rating: 8] Favorites ----------- Power Light Ion Engine Engine Light Ion Engine Propulsion Aluminum Leg Leg Aluminum Leg Utility Small Storage Unit Storage Small Storage Unit Processor Targeting Computer Weapon Assault Rifle Energy Gun EM Pulse Gun Ballistic Gun Assault Rifle Impact Weapon Hammer Build | -11 -10 ------- Run | Yrd Mat Slots Evolved . | . . Power . | . . Propulsion . | . . Utility . | . . Weapon . | . . Parts Attached 17 | 6 11 Power 4 | 1 3 Engine 4 | 1 3 Core . | . . Reactor . | . . Propulsion 4 | 2 2 Treads . | . . Leg 4 | 2 2 Wheel . | . . Hover . | . . Flight . | . . Utility 3 | 1 2 Device . | . . Storage 1 | 1 . Processor 2 | . 2 Hackware . | . . Protection . | . . Artifact . | . . Weapon 6 | 2 4 Energy Gun 2 | 1 1 Energy Cannon . | . . Ballistic Gun 3 | 1 2 Ballistic Cannon . | . . Launcher . | . . Special Weapon . | . . Impact Weapon 1 | . 1 Slashing Weapon . | . . Piercing Weapon . | . . Special Melee Weapon . | . . Unidentified Prototypes . | . . Parts Lost 7 | . 7 Power 2 | . 2 Propulsion 2 | . 2 Utility . | . . Weapon 3 | . 3 Highest Loss Streak 3 | . 3 To Critical Strikes . | . . Average Slot Usage (%) 98 | . 98 Engine 14 | . 14 Leg 28 | . 28 Storage 14 | . 14 Processor 13 | . 13 Energy Gun 10 | . 10 Ballistic Gun 6 | . 6 Impact Weapon 10 | . 10 Naked Turns . | . . Heaviest Build 13 | 12 13 Greatest Support 20 | 20 20 Greatest Overweight (x) 1 | 1 . Average Overweight (x) . | . . Largest Inventory Capacity 8 | 8 8 Average Capacity 7 | 7 8 Most Carried 7 | 6 7 Average Carried 3 | 2 4 Final Capacity 8 | 8 8 Final Carried 5 | 2 5 Class Distribution -------------------- 100% | Mutant Dominant Class ---------------- Mutant | -10/Materials Resources | -11 -10 ----------- Run | Yrd Mat Matter Collected 407 | 188 219 Remotely . | . . Salvage Created 624 | . 624 Parts 22 | . 22 Haulers Intercepted 1 | . 1 Recyclers Shooed . | . . Parts Field Recycled . | . . Retrieved Matter . | . . Parts Self-Destructed . | . . Prevented . | . . Kills | -11 -10 ------- Run | Yrd Mat Combat Hostiles Destroyed 10 | . 10 Melee 3 | . 3 Guns 5 | . 5 AOE 1 | . 1 Classes Destroyed 6 | . 6 Worker 1 | . 1 Hauler 1 | . 1 Recycler 3 | . 3 Watcher 1 | . 1 Swarmer 3 | . 3 Grunt 7 | . 7 Best Kill Streak 8 | . 8 Combat Bots Only 6 | . 6 Max Kills in Single Turn 2 | . 2 Gunslinging . | . . Exploded 1 | . 1 Melee 1 | . 1 Uniques/NPCs Destroyed . | . . Combat | -11 -10 -------- Run | Yrd Mat Hostile Shots Fired 119 | . 119 Missed 39 | . 39 Damage Taken 966 | . 966 Core 258 | . 258 Absorbed by Shields . | . . Core Remaining (%) 100 | 100 . Volleys Fired 38 | . 38 Largest 2 | . 2 Hottest 60 | . 60 Shots Fired 49 | . 49 Gun 49 | . 49 Cannon . | . . Launcher . | . . Special . | . . Kinetic 29 | . 29 Thermal 11 | . 11 Explosive . | . . Electromagnetic 9 | . 9 Robot Hit Streak 12 | . 12 Robot Miss Streak 4 | . 4 Penetration Max . | . . Secondary Targets 2 | . 2 Max Gunslinging Chain 1 | . 1 Shots Hit Robots 57 | . 57 Core Hits 16 | . 16 Critical Kills 2 | . 2 Critical Parts Destroyed 4 | . 4 Critical Strikes 6 | . 6 Destroy 1 | . 1 Smash 5 | . 5 Melee Attacks 24 | . 24 Impact 24 | . 24 Slashing . | . . Piercing . | . . Sneak Attacks 4 | . 4 Combat Hostiles . | . . Follow-up Attacks . | . . Damage Inflicted 1240 | . 1240 Guns 440 | . 440 Cannons . | . . Explosions 155 | . 155 Melee 645 | . 645 Ramming . | . . Kinetic 286 | . 286 Thermal 210 | . 210 Explosive . | . . Electromagnetic 99 | . 99 Impact 645 | . 645 Slashing . | . . Piercing . | . . Highest Corruption . | . . Average Corruption . | . . Corruption Purged . | . . Corruption Blocked . | . . Overload Shots . | . . Overflow Damage 180 | . 180 Projectiles . | . . Explosions . | . . Melee 180 | . 180 Knockbacks 2 | . 2 Impact 2 | . 2 Kinetic . | . . Secondary . | . . Self-Inflicted Damage 37 | . 37 Shots 1 | . 1 Rammed . | . . Targets Rammed . | . . Kicked . | . . Crushed . | . . Highest Temperature 72 | . 72 Average Temperature 28 | . 28 Received Heat Transfer 480 | . 480 Siege Activations . | . . Robots Corrupted 1 | . 1 Combat Hostiles 1 | . 1 Parts Fried 6 | . 6 Impact Corruptions 8 | . 8 Robots Melted . | . . Combat Hostiles . | . . Parts Melted 1 | . 1 Heat Transferred 375 | . 375 Parts Sabotaged . | . . Parts Stolen . | . . Parts Stripped . | . . Power Chain Reactions 2 | . 2 Alert | -11 -10 ------- Run | Yrd Mat Peak Influence 250 | . 250 Initial . | . . Average 72 | . 112 Maximum Alert Level 1 | . 1 Low Security (%) 85 | 100 77 Level 1 14 | . 22 Level 2 . | . . Level 3 . | . . Level 4 . | . . Level 5 . | . . High Security . | . . Max Security . | . . Squads Dispatched 6 | . 6 Investigation 4 | . 4 Extermination . | . . Reinforcement 2 | . 2 Assault . | . . Garrison . | . . Intercept . | . . Searches Triggered . | . . Construction Impeded . | . . Haulers Reinforced . | . . Active Scanning Responses . | . . Cargo Convoy Interrupts . | . . Stealth | -11 -10 --------- Run | Yrd Mat Distress Signals 2 | . 2 Communications Jammed . | . . Distress Signals . | . . Times Spotted 19 | . 19 Peak Tracking Total 5 | . 5 Tactical Retreats . | . . Traps | -11 -10 ------- Run | Yrd Mat Traps Triggered 1 | . 1 Indirectly . | . . Trap Hack Attempts . | . . Triggered . | . . Disarmed . | . . Reprogrammed . | . . Reused . | . . Traps Extracted . | . . Installed . | . . Triggered . | . . Machines | -11 -10 ---------- Run | Yrd Mat Machines Disabled . | . . Max in Single Turn . | . . Machines Repaired . | . . Machines Dismantled . | . . Machines Sabotaged . | . . Overloaded Fab Kills . | . . Hacking | -11 -10 --------- Run | Yrd Mat Machines Accessed 7 | . 7 Terminals 5 | . 5 Fabricators . | . . Repair Stations . | . . Recycling Units 2 | . 2 Scanalyzers . | . . Garrison Access . | . . Total Hacks 29 | . 29 Successful 11 | . 11 Failed 18 | . 18 Catastrophic 4 | . 4 Database Lockouts . | . . Manual 2 | . 2 Terminals 24 | . 24 Fabricators . | . . Repair Stations . | . . Recycling Units 5 | . 5 Scanalyzers . | . . Garrison Access . | . . Terminal Hacks 7 | . 7 Record 2 | . 2 Prototype ID Bank 1 | . 1 Locate Traps 1 | . 1 Registered Components 1 | . 1 Zone Layout 2 | . 2 Fabricator Hacks . | . . Repair Station Hacks . | . . Recycling Unit Hacks 4 | . 4 Report Inventory 2 | . 2 Retrieve Components 2 | . 2 Scanalyzer . | . . Garrison Access Hacks . | . . Unauthorized Hacks . | . . Terminals . | . . Fabricators . | . . Repair Stations . | . . Recycling Units . | . . Scanalyzers . | . . Garrison Access . | . . Data Cores Recovered . | . . Used . | . . Hacking Detections 6 | . 6 Full Trace Events 5 | . 5 Feedback Events . | . . Feedback Blocked . | . . Robot Schematics Acquired . | . . Robots Built . | . . Authchips . | . . Time . | . . Total Robot Build Rating . | . . Part Schematics Acquired . | . . Parts Built . | . . Authchips . | . . Time . | . . Total Part Build Rating . | . . Parts Repaired . | . . Time . | . . Parts Recycled . | . . Recycled Matter . | . . Retrieved Matter . | . . Retrieved Components 6 | . 6 Parts Scanalyzed . | . . Part Schematics Acquired . | . . Parts Damaged . | . . Bothacking | -11 -10 ------------ Run | Yrd Mat Used RIF Installer . | . . Robots Hacked . | . . Non-combat . | . . Combat . | . . Robot Hacks Applied . | . . Relay Couplers Released . | . . Fabnet Peak Effective % . | . . Robots Rewired . | . . Allies Hacked . | . . Hacks Repelled . | . . Allies | -11 -10 -------- Run | Yrd Mat Total Allies . | . . Largest Group . | . . Highest-Rated Group . | . . Highest-Rated Ally . | . . Total Orders . | . . Ally Attacks . | . . Total Damage . | . . Kills . | . . Allies Corrupted . | . . Allies Melted . | . . Intel | -11 -10 ------- Run | Yrd Mat Robot Analysis Total . | . . Derelict Logs Recovered . | . . Drone Launches . | . . Drone Recoveries . | . . Exploration | -11 -10 ------------- Run | Yrd Mat Turns Passed 858 | 301 557 Spaces Moved 339 | 45 294 Core 20 | 20 . Treads . | . . Legs 319 | 25 294 Wheels . | . . Hover . | . . Flight . | . . Fastest Speed 50 | 50 120 Average Speed 118 | 108 120 Slowest Speed 120 | 120 120 Overloaded Moves . | . . Propulsion Burnouts . | . . Robots Hopped . | . . Cave-ins Triggered . | . . Exploration Rate (%) 32 | 4 61 Regions Visited 1 Branch Regions . Pre-discovered Areas . | . . Known Exits Taken . | . . Unknown Exits Taken 1 | 1 . Scrap Searched . | . . Spaces Dug . | . . Terrain Destroyed 3 | . 3 Melee . | . . Projectile . | . . AOE 3 | . 3 Terrain Rammed . | . . Walls Destroyed . | . . Machines Disabled . | . . Actions | -11 -10 --------- Run | Yrd Mat Total 702 | 297 405 Wait 266 | 239 27 Move 338 | 44 294 Hop . | . . Pick Up 19 | 8 11 Fast Attach . | . . Attach 13 | 6 7 Detach . | . . Swap 4 | . 4 Drop . | . . Fire 38 | . 38 Melee 24 | . 24 Ram . | . . Kick . | . . Crush . | . . Escape Stasis . | . . Rewire . | . . Trap . | . . Miscellaneous . | . . Route ------- -11/Scrapyard -10/Materials (discovered 2 exits: [*Min x2]) History --------- Turn | Location | Event 9 | -11/Scrapyard | Discovered new exit (range 15) 302 | -11/Scrapyard | Entered Materials 302 | -10/Materials | Discovered new exit (range 14) 303 | -10/Materials | Build established: Mutant 401 | -10/Materials | Discovered new exit (range 10) 552 | -10/Materials | Core integrity fell below 50% 843 | -10/Materials | Core integrity fell below 20% 859 | -10/Materials | Destroyed by G-34 Mercenary with Small Laser Last Messages --------------- 00728_ ALERT: Hostiles spotted, dispatching reinforcements to Terminal M005. 00728_ O-16 Technician locks terminal. 00738_ Acquired Targeting Computer. 00739_ Discarded Targeting Computer. 00764_ G-34 Mercenary destroyed. 00772_ Acquired 10 matter. 00774_ Acquired Aluminum Leg. 00796_ Acquired Assault Rifle. 00800_ Triggered Alarm Trap. 00800_ An alarm sounds. 00800_ ALERT: Alarm triggered, dispatching investigation squad. 00806_ Connecting with Terminal... 00806_ ALERT: Suspicious activity at Terminal M007. Dispatching Investigation squad. 00816_ U-05 Engineer lays Concrete. 00846_ Aluminum Leg destroyed. 00855_ Ion Engine destroyed. 00858_ Sml. Laser destroyed. Map ----- +----------------------------------------------------+ | ????????????????? ## ##### | | ????????????????? ## #???? | | ?????????????????####### ##### | | ??#######???????######## | | ??# #???????# # ##### | | ??# ######### !!! # #???? | | ??# [% + !!! # ##### | | ??# ######### !! / # | | ??# !#???????# # # | | ??## ##???????# # # | | ???# #?###########+### # | | ???# #?# ##### ##### # | | ???# #?# ! #??# # | | ???# #?# #??# ####+ | | ???# #?# #??# #??# | | ???# #?? #?## #??# #??# | | ???# #??# #???# #??# #??# | | ???# #### #???# #??# #??# | | ???# #???# #??# #??# | | ???# ##??# #??# #??# | | ???# T#??# #??# #??# | | ???# |! ##??# #??# #??# | | ???# ! #???## #### #### | | ???# #????# | | ???# #????# | | ???# @ #????# %% | | ???#gg ########????# ####+#### | | ???# g #???????????# # # | | ???# #????????????? # """ # | | ???# #????????????? # """ # | | ???# #????????????? # """ # | | ???# #????????????? # # | | ???# #????????????? # """ # | | ???# +????????????? # """ # | | ???# #????????????? # """ # | | ???# ?????????????? # # | | ???# ?????????????? #######+# | | ???# ??????????? | | ???# ??????????? #### | | ???# ?????????????? #??? | | ???# ??????????????### ###? | | ???? ????????????????# ## | | ???????????????????????# ## | | ???????????????????????# ## | | ???????????????????????######### | | ???????????????????????????????# | | ???????????????????????????????# | | ???????????????????????????????# | | ???????????????????????????????# | | ???????????????????????????????? | +----------------------------------------------------+ Best States ------------- Heat Dissipation 25 Energy Generation 10 Energy Capacity 250 Matter Stores 300 Matter Capacity 300 Sight Range 16 Terrain Scan Density 10 Evasion (%) 55 Targeting Accuracy 5 Authchip Count 1 Item Schematics ----------------- None Robot Schematics ------------------ None Fabricated ------------ Nothing Alien Tech Used ----------------- None Achievements -------------- None Challenges ------------ None Game ------ Seed AuthchipConcussiveDatajack Manual? 0 Play Time 00:07:55 Cumulative 3.6 hours Start 2024.05.03 @ 11:24:46 End 2024.05.03 @ 11:32:32 Sessions 1 Manual Loads 0 Difficulty Rogue Special Mode None Game No. 9 Rogue 9 Adventurer 0 Explorer 0 Win Type - Total 0 Types 0/0/0/0/0/0/0/0/0 Lore% 1 Gallery% 11 Achievement% 8 Wizard Run 0 Options --------- Layout 1 ASCII 0 Keyboard 1 Movement Numpad Keybinds 0 Fullscreen 1 Font 24/Smallcaps Map View 50x35 Zoom Use 0% Tactical HUD 1 Map Filters NONE Filters NONE Steam 1 RUN: 5426d094-a2c6-4cdf-893e-41f8285194fc